fUST/lending_fUST_20250830
["ID","MTS","AMOUNT","RATE_DAILY","PERIOD"]
[382290894,1756566640416,-3501.39291462,0.00018926,2]
[382290895,1756566640426,-21811.17220283,0.00018953,2]
[382290896,1756566640436,-396.0,0.00018967,2]
[382290897,1756566640446,-160.0,0.00018969,2]
[382290898,1756566640455,-217.34977173,0.00018969,2]
[382290899,1756566640469,-425.65682239,0.00018969,2]
[382290901,1756566640479,-417.15472785,0.00018969,2]
[382290903,1756566640488,-232.73020027,0.00018969,2]
[382290905,1756566640499,-160.0,0.00018969,2]
[382290907,1756566640508,-160.0,0.00018969,2]
[382290909,1756566640518,-845.75060209,0.00018969,2]
[382290911,1756566640528,-529.89603018,0.00018969,2]
[382290913,1756566640538,-216.25802849,0.00018969,2]
[382290915,1756566640547,-160.0,0.0001898,2]
[382290917,1756566640557,-160.0,0.0001898,2]
[382290919,1756566640567,-3630.94445246,0.00018981,2]
[382290921,1756566640576,-160.0,0.00018992,2]
[382290923,1756566640587,-277.79445733,0.00018998,2]
[382290925,1756566640597,-1429.92400297,0.00018998,2]
[382290927,1756566640608,-3765.2893972,0.00019036,2]
[382290929,1756566640621,-365.0,0.00019074,2]
[382290931,1756566640631,-3125.09082032,0.00019078,2]
[382290933,1756566640640,-174.07937744,0.00019078,2]
[382290935,1756566640649,-1000.0,0.00019078,2]
[382290937,1756566640659,-396.0,0.00019083,2]
[382290939,1756566640669,-396.0,0.00019143,2]
[382290941,1756566640679,-500.0,0.00019157,2]
[382290943,1756566640688,-976.565,0.00019165,2]
[382290945,1756566640698,-632.943,0.00019165,2]
[382290947,1756566640707,-2214.437,0.00019165,2]
[382290949,1756566640718,-409.0,0.00019165,2]
[382290951,1756566640727,-500.0,0.00019173,2]
[382290953,1756566640738,-500.0,0.00019173,2]
[382290955,1756566640748,-500.0,0.00019173,2]
[382290957,1756566640758,-500.0,0.00019173,2]
[382290960,1756566640767,-500.0,0.00019173,2]
[382290961,1756566640779,-500.0,0.00019173,2]
[382290963,1756566640788,-500.0,0.00019173,2]
[382290965,1756566640798,-500.0,0.00019173,2]
[382290967,1756566640808,-500.0,0.00019173,2]
[382290970,1756566640818,-500.0,0.00019173,2]
[382290972,1756566640828,-554.46295892,0.00019173,2]
[382290974,1756566640838,-500.0,0.00019173,2]
[382290976,1756566640847,-377.58739239,0.00019173,2]
[382290977,1756566640857,-500.0,0.00019173,2]
[382290979,1756566640867,-400.92377988,0.00019173,2]
[382290981,1756566640877,-500.0,0.00019173,2]
[382290983,1756566640887,-500.0,0.00019173,2]
[382290985,1756566640897,-212.75742335,0.00019173,2]
[382290988,1756566640907,-244.67576448,0.00019173,2]
[382290989,1756566640916,-500.0,0.00019173,2]
[382290992,1756566640930,-500.0,0.00019173,2]
[382290993,1756566640940,-500.0,0.00019173,2]
[382290995,1756566640949,-500.0,0.00019173,2]
[382290998,1756566640960,-500.0,0.00019173,2]
[382290999,1756566640972,-500.0,0.00019173,2]
[382291001,1756566640981,-500.0,0.00019173,2]
[382291004,1756566640991,-500.0,0.00019173,2]
[382291005,1756566641004,-501.88061265,0.00019173,2]
[382291007,1756566641014,-500.0,0.00019173,2]
[382291009,1756566641023,-500.0,0.00019173,2]
[382291011,1756566641032,-500.0,0.00019173,2]
[382291013,1756566641042,-501.00989355,0.00019173,2]
[382291015,1756566641051,-500.58297378,0.00019173,2]
[382291017,1756566641060,-500.0,0.00019173,2]
[382291019,1756566641070,-500.0,0.00019173,2]
[382291021,1756566641080,-501.96260547,0.00019173,2]
[382291023,1756566641089,-500.0,0.00019173,2]
[382291025,1756566641099,-500.0,0.00019173,2]
[382291027,1756566641109,-500.0,0.00019173,2]
[382291029,1756566641118,-500.0,0.00019173,2]
[382291031,1756566641127,-227.83406372,0.00019173,2]
[382291033,1756566641137,-500.0,0.00019173,2]
[382291035,1756566641146,-500.0,0.00019173,2]
[382291038,1756566641156,-500.0,0.00019173,2]
[382291039,1756566641166,-367.51569067,0.00019173,2]
[382291042,1756566641175,-500.0,0.00019173,2]
[382291043,1756566641184,-500.0,0.00019173,2]
[382291045,1756566641194,-500.0,0.00019173,2]
[382291048,1756566641204,-501.66464817,0.00019173,2]
[382291049,1756566641213,-500.0,0.00019173,2]
[382291052,1756566641223,-500.0,0.00019173,2]
[382291053,1756566641233,-500.0,0.00019173,2]
[382291056,1756566641242,-500.0,0.00019173,2]
[382291057,1756566641252,-500.0,0.00019173,2]
[382291059,1756566641261,-501.74279141,0.00019173,2]
[382291061,1756566641271,-500.0,0.00019173,2]
[382291063,1756566641280,-500.0,0.00019173,2]
[382291065,1756566641290,-480.0,0.00019178,2]
[382291067,1756566641299,-480.0,0.00019178,2]
[382291069,1756566641309,-480.0,0.00019178,2]
[382291071,1756566641319,-480.0,0.00019178,2]
[382291073,1756566641330,-480.0,0.00019178,2]
[382291075,1756566641339,-480.0,0.00019178,2]
[382291077,1756566641348,-480.0,0.00019178,2]
[382291079,1756566641358,-480.0,0.00019178,2]
[382291081,1756566641367,-480.0,0.00019178,2]
[382291083,1756566641377,-480.0,0.00019178,2]
[382291085,1756566641387,-486.31799197,0.00019178,2]
[382291087,1756566641396,-480.0,0.00019178,2]
[382291089,1756566641406,-616.56405023,0.00019178,2]
[382291091,1756566641415,-695.36,0.00019178,2]
[382291093,1756566641426,-480.0,0.00019178,2]
[382291095,1756566641436,-480.0,0.00019178,2]
[382291097,1756566641446,-498.63,0.00019178,2]
[382291099,1756566641458,-480.0,0.00019178,2]
[382291101,1756566641467,-480.0,0.00019178,2]
[382291103,1756566641476,-480.0,0.00019178,2]
[382291105,1756566641486,-480.0,0.00019178,2]
[382291107,1756566641495,-576.14,0.00019178,2]
[382291109,1756566641505,-480.0,0.00019178,2]
[382291111,1756566641514,-485.89790385,0.00019178,2]
[382291113,1756566641523,-480.0,0.00019178,2]
[382291115,1756566641533,-480.0,0.00019178,2]
[382291117,1756566641543,-480.0,0.00019178,2]
[382291119,1756566641552,-480.0,0.00019178,2]
[382291121,1756566641561,-626.75,0.00019178,2]
[382291123,1756566641571,-480.0,0.00019178,2]
[382291125,1756566641580,-480.0,0.00019178,2]
[382291127,1756566641589,-480.0,0.00019178,2]
[382291129,1756566641599,-533.25,0.00019178,2]
[382291131,1756566641608,-480.0,0.00019178,2]
[382291133,1756566641617,-480.0,0.00019178,2]
[382291135,1756566641627,-480.0,0.00019178,2]
[382291137,1756566641636,-480.0,0.00019178,2]
[382291139,1756566641646,-480.0,0.00019178,2]
[382291141,1756566641655,-480.0,0.00019178,2]
[382291143,1756566641665,-480.0,0.00019178,2]
[382291145,1756566641675,-480.0,0.00019178,2]
[382291147,1756566641685,-480.0,0.00019178,2]
[382291149,1756566641695,-1661.82517108,0.00019178,2]
[382291151,1756566641704,-480.0,0.00019178,2]
[382291153,1756566641714,-480.0,0.00019178,2]
[382291155,1756566641723,-480.0,0.00019178,2]
[382291157,1756566641732,-480.0,0.00019178,2]
[382291159,1756566641742,-692.71,0.00019178,2]
[382291161,1756566641752,-480.0,0.00019178,2]
[382291163,1756566641761,-529.59,0.00019178,2]
[382291165,1756566641771,-651.16,0.00019178,2]
[382291167,1756566641780,-1041.06,0.00019178,2]
[382291169,1756566641790,-483.53022449,0.00019178,2]
[382291171,1756566641800,-480.0,0.00019178,2]
[382291172,1756566641809,-480.0,0.00019178,2]
[382291174,1756566641819,-480.0,0.00019178,2]
[382291176,1756566641829,-480.0,0.00019178,2]
[382291179,1756566641839,-480.0,0.00019178,2]
[382291181,1756566641848,-480.0,0.00019178,2]
[382291182,1756566641858,-480.0,0.00019178,2]
[382291184,1756566641869,-480.0,0.00019178,2]
[382291186,1756566641878,-500.0,0.00019178,2]
[382291188,1756566641888,-480.0,0.00019178,2]
[382291191,1756566641898,-480.0,0.00019178,2]
[382291193,1756566641908,-480.0,0.00019178,2]
[382291195,1756566641918,-480.0,0.00019178,2]
[382291197,1756566641933,-480.0,0.00019178,2]
[382291199,1756566641942,-480.0,0.00019178,2]
[382291201,1756566641951,-462.54006933,0.00019178,2]
[382291202,1756566641962,-480.0,0.00019178,2]
[382291205,1756566641973,-480.0,0.00019178,2]
[382291206,1756566641983,-480.0,0.00019178,2]
[382291208,1756566641995,-480.0,0.00019178,2]
[382291210,1756566642006,-480.0,0.00019178,2]
[382291213,1756566642016,-480.0,0.00019178,2]
[382291214,1756566642026,-480.0,0.00019178,2]
[382291217,1756566642036,-480.0,0.00019178,2]
[382291219,1756566642047,-480.0,0.00019178,2]
[382291221,1756566642057,-480.0,0.00019178,2]
[382291223,1756566642067,-480.0,0.00019178,2]
[382291225,1756566642077,-484.78030225,0.00019178,2]
[382291227,1756566642086,-480.0,0.00019178,2]
[382291228,1756566642096,-155.47591756,0.00019178,2]
[382291230,1756566642106,-480.0,0.00019178,2]
[382291232,1756566642116,-507.66214982,0.00019178,2]
[382291235,1756566642126,-480.0,0.00019178,2]
[382291236,1756566642136,-674.36,0.00019178,2]
[382291238,1756566642146,-480.0,0.00019178,2]
[382291240,1756566642156,-480.0,0.00019178,2]
[382291242,1756566642165,-500.0,0.00019178,2]
[382291244,1756566642175,-480.0,0.00019178,2]
[382291246,1756566642185,-480.0,0.00019178,2]
[382291248,1756566642195,-480.0,0.00019178,2]
[382291250,1756566642205,-480.0,0.00019178,2]
[382291252,1756566642215,-1768.61,0.00019178,2]
[382291254,1756566642224,-818.45,0.00019178,2]
[382291256,1756566642234,-480.0,0.00019178,2]
[382291258,1756566642245,-686.54,0.00019178,2]
[382291260,1756566642255,-480.0,0.00019178,2]
[382291262,1756566642265,-480.0,0.00019178,2]
[382291265,1756566642275,-1000.0,0.00019178,2]
[382291267,1756566642285,-480.0,0.00019178,2]
[382291269,1756566642295,-151.0,0.00019178,2]
[382291271,1756566642307,-480.0,0.00019178,2]
[382291273,1756566642316,-480.0,0.00019178,2]
[382291275,1756566642326,-500.0,0.00019178,2]
[382291277,1756566642336,-500.0,0.00019178,2]
[382291279,1756566642345,-151.0,0.00019178,2]
[382291280,1756566642355,-758.38,0.00019178,2]
[382291282,1756566642364,-1118.36,0.00019178,2]
[382291284,1756566642374,-480.0,0.00019178,2]
[382291286,1756566642383,-500.0,0.00019178,2]
[382291288,1756566642394,-151.0,0.00019178,2]
[382291290,1756566642404,-480.0,0.00019178,2]
[382291292,1756566642413,-546.25,0.00019178,2]
[382291294,1756566642423,-500.0,0.00019178,2]
[382291296,1756566642433,-480.0,0.00019178,2]
[382291298,1756566642443,-151.72318566,0.00019178,2]
[382291300,1756566642453,-531.29,0.00019178,2]
[382291302,1756566642463,-500.0,0.00019178,2]
[382291319,1756566642615,-151.0,0.00019178,2]
[382291321,1756566642625,-480.0,0.00019178,2]
[382291323,1756566642635,-151.0,0.00019178,2]
[382291325,1756566642645,-151.0,0.00019178,2]
[382291327,1756566642654,-392.33836996,0.00019178,2]
[382291329,1756566642664,-500.0,0.00019178,2]
[382291331,1756566642674,-480.0,0.00019178,2]
[382291333,1756566642684,-480.0,0.00019178,2]
[382291335,1756566642693,-151.31965505,0.00019178,2]
[382291337,1756566642702,-480.0,0.00019178,2]
[382291339,1756566642712,-511.38,0.00019178,2]
[382291341,1756566642721,-480.0,0.00019178,2]
[382291343,1756566642731,-480.0,0.00019178,2]
[382291345,1756566642740,-480.0,0.00019178,2]
[382291347,1756566642750,-480.0,0.00019178,2]
[382291349,1756566642759,-484.67,0.00019178,2]
[382291351,1756566642768,-480.0,0.00019178,2]
[382291353,1756566642778,-1136.01,0.00019178,2]
[382291355,1756566642787,-480.0,0.00019178,2]
[382291357,1756566642796,-480.0,0.00019178,2]
[382291359,1756566642806,-480.0,0.00019178,2]
[382291361,1756566642815,-825.52,0.00019178,2]
[382291363,1756566642825,-480.0,0.00019178,2]
[382291365,1756566642834,-1238.64,0.00019178,2]
[382291367,1756566642844,-566.85,0.00019178,2]
[382291369,1756566642853,-480.0,0.00019178,2]
[382291370,1756566642862,-741.81,0.00019178,2]
[382291372,1756566642871,-480.0,0.00019178,2]
[382291374,1756566642881,-480.0,0.00019178,2]
[382291376,1756566642891,-480.0,0.00019178,2]
[382291378,1756566642900,-480.0,0.00019178,2]
[382291381,1756566642910,-480.0,0.00019178,2]
[382291382,1756566642920,-480.0,0.00019178,2]
[382291384,1756566642935,-480.0,0.00019178,2]
[382291386,1756566642944,-480.0,0.00019178,2]
[382291388,1756566642954,-1002.36,0.00019178,2]
[382291390,1756566642963,-1680.42,0.00019178,2]
[382291392,1756566642973,-480.0,0.00019178,2]
[382291394,1756566642982,-1415.51,0.00019178,2]
[382291396,1756566642992,-480.0,0.00019178,2]
[382291398,1756566643001,-550.52,0.00019178,2]
[382291400,1756566643011,-229.4621104,0.00019178,2]
[382291402,1756566643021,-1818.88,0.00019178,2]
[382291404,1756566643031,-812.38,0.00019178,2]
[382291406,1756566643042,-480.0,0.00019178,2]
[382291408,1756566643052,-480.0,0.00019178,2]
[382291410,1756566643066,-1504.24,0.00019178,2]
[382291412,1756566643085,-480.0,0.00019178,2]
[382291414,1756566643106,-569.37,0.00019178,2]
[382291416,1756566643117,-1837.01,0.00019178,2]
[382291418,1756566643127,-437.26932811,0.00019178,2]
[382291420,1756566643136,-480.0,0.00019178,2]
[382291422,1756566643146,-480.0,0.00019178,2]
[382291424,1756566643156,-481.2,0.00019178,2]
[382291426,1756566643166,-480.0,0.00019178,2]
[382291428,1756566643176,-480.0,0.00019178,2]
[382291430,1756566643185,-790.14,0.00019178,2]
[382291432,1756566643196,-485.38515749,0.00019178,2]
[382291434,1756566643205,-546.27,0.00019178,2]
[382291436,1756566643215,-199.79811512,0.00019178,2]
[382291438,1756566643224,-480.0,0.00019178,2]
[382291440,1756566643234,-480.0,0.00019178,2]
[382291442,1756566643243,-480.0,0.00019178,2]
[382291444,1756566643253,-776.22,0.00019178,2]
[382291446,1756566643262,-480.0,0.00019178,2]
[382291448,1756566643272,-480.0,0.00019178,2]
[382291450,1756566643281,-480.0,0.00019178,2]
[382291452,1756566643291,-480.0,0.00019178,2]
[382291454,1756566643301,-530.26,0.00019178,2]
[382291456,1756566643310,-480.0,0.00019178,2]
[382291458,1756566643320,-798.23,0.00019178,2]
[382291460,1756566643330,-480.0,0.00019178,2]
[382291462,1756566643340,-530.51,0.00019178,2]
[382291464,1756566643349,-1153.27,0.00019178,2]
[382291466,1756566643358,-154.290052,0.00019178,2]
[382291467,1756566643368,-781.78,0.00019178,2]
[382291468,1756566643378,-480.0,0.00019178,2]
[382291469,1756566643387,-521.85,0.00019178,2]
[382291470,1756566643397,-1413.41,0.00019178,2]
[382291472,1756566643407,-406.68447411,0.00019178,2]
[382291474,1756566643416,-642.23,0.00019178,2]
[382291476,1756566643425,-811.35,0.00019178,2]
[382291478,1756566643435,-480.0,0.00019178,2]
[382291480,1756566643446,-480.0,0.00019178,2]
[382291482,1756566643457,-480.0,0.00019178,2]
[382291484,1756566643466,-531.88,0.00019178,2]
[382291486,1756566643476,-480.0,0.00019178,2]
[382291488,1756566643486,-480.0,0.00019178,2]
[382291490,1756566643495,-151.902263,0.00019178,2]
[382291492,1756566643505,-480.0,0.00019178,2]
[382291493,1756566643515,-480.0,0.00019178,2]
[382291494,1756566643524,-850.11,0.00019178,2]
[382291495,1756566643535,-511.45694253,0.00019178,2]
[382291496,1756566643544,-516.77562934,0.00019178,2]
[382291497,1756566643554,-631.87,0.00019178,2]
[382291498,1756566643564,-480.0,0.00019178,2]
[382291499,1756566643573,-513.78122569,0.00019178,2]
[382291500,1756566643583,-1161.11,0.00019178,2]
[382291501,1756566643593,-655.77,0.00019178,2]
[382291502,1756566643602,-480.0,0.00019178,2]
[382291503,1756566643611,-227.29189616,0.00019178,2]
[382291504,1756566643621,-480.0,0.00019178,2]
[382291505,1756566643630,-480.0,0.00019178,2]
[382291506,1756566643639,-480.0,0.00019178,2]
[382291507,1756566643649,-3079.28726193,0.00019178,2]
[382291508,1756566643660,-5474.28846565,0.00019178,2]
[382291509,1756566643669,-8553.57572757,0.00019178,2]
[382291510,1756566643679,-151.0,0.00019178,2]
[382291511,1756566643688,-151.0,0.00019178,2]
[382291512,1756566643699,-480.0,0.00019178,2]
[382291513,1756566643709,-480.0,0.00019178,2]
[382291515,1756566643718,-480.0,0.00019178,2]
[382291516,1756566643728,-480.0,0.00019178,2]
[382291517,1756566643737,-480.0,0.00019178,2]
[382291518,1756566643747,-480.0,0.00019178,2]
[382291519,1756566643756,-480.0,0.00019178,2]
[382291521,1756566643766,-480.0,0.00019178,2]
[382291523,1756566643776,-485.12393942,0.00019178,2]
[382291525,1756566643786,-480.0,0.00019178,2]
[382291527,1756566643795,-276.697352,0.00019178,2]
[382291529,1756566643804,-480.0,0.00019178,2]
[382291531,1756566643814,-756.32,0.00019178,2]
[382291533,1756566643823,-480.0,0.00019178,2]
[382291535,1756566643833,-480.0,0.00019178,2]
[382291537,1756566643843,-480.0,0.00019178,2]
[382291539,1756566643852,-480.0,0.00019178,2]
[382291541,1756566643862,-480.0,0.00019178,2]
[382291543,1756566643871,-170.875051,0.00019178,2]
[382291545,1756566643880,-480.0,0.00019178,2]
[382291547,1756566643889,-483.97603794,0.00019178,2]
[382291549,1756566643900,-574.45,0.00019178,2]
[382291551,1756566643909,-2530.67,0.00019178,2]
[382291553,1756566643919,-155.0,0.00019178,2]
[382291555,1756566643933,-480.0,0.00019178,2]
[382291557,1756566643944,-1065.04,0.00019178,2]
[382291559,1756566643953,-151.0,0.00019178,2]
[382291561,1756566643963,-181.62472607,0.00019178,2]
[382291563,1756566643974,-480.0,0.00019178,2]
[382291565,1756566643984,-480.0,0.00019178,2]
[382291567,1756566643994,-1992.8,0.00019178,2]
[382291569,1756566644005,-480.0,0.00019178,2]
[382291571,1756566644015,-500.0,0.00019178,2]
[382291573,1756566644025,-480.0,0.00019178,2]
[382291575,1756566644035,-151.0,0.00019178,2]
[382291577,1756566644045,-184.59845338,0.00019178,2]
[382291579,1756566644055,-480.0,0.00019178,2]
[382291581,1756566644065,-151.0,0.00019178,2]
[382291583,1756566644075,-151.0,0.00019178,2]
[382291585,1756566644084,-1696.98,0.00019178,2]
[382291587,1756566644093,-601.49,0.00019178,2]
[382291589,1756566644103,-1829.04,0.00019178,2]
[382291591,1756566644112,-151.0,0.00019178,2]
[382291593,1756566644121,-151.0,0.00019178,2]
[382291595,1756566644131,-151.0,0.00019178,2]
[382291597,1756566644140,-1768.25,0.00019178,2]
[382291599,1756566644150,-480.0,0.00019178,2]
[382291601,1756566644159,-480.0,0.00019178,2]
[382291603,1756566644169,-327.0,0.00019178,2]
[382291605,1756566644179,-327.0,0.00019178,2]
[382291607,1756566644188,-613.56,0.00019178,2]
[382291609,1756566644198,-327.0,0.00019178,2]
[382291611,1756566644207,-152.6708,0.00019178,2]
[382291613,1756566644217,-327.0,0.00019178,2]
[382291615,1756566644227,-327.0,0.00019178,2]
[382291617,1756566644236,-327.0,0.00019178,2]
[382291619,1756566644245,-327.0,0.00019178,2]
[382291621,1756566644255,-327.0,0.00019178,2]
[382291623,1756566644264,-327.0,0.00019178,2]
[382291625,1756566644274,-789.35,0.00019178,2]
[382291627,1756566644283,-327.0,0.00019178,2]
[382291629,1756566644294,-234.5749063,0.00019178,2]
[382291631,1756566644304,-327.0,0.00019178,2]
[382291633,1756566644313,-327.0,0.00019178,2]
[382291635,1756566644323,-480.0,0.00019178,2]
[382291637,1756566644334,-327.0,0.00019178,2]
[382291639,1756566644344,-598.02,0.00019178,2]
[382291641,1756566644353,-327.0,0.00019178,2]
[382291642,1756566644363,-480.0,0.00019178,2]
[382291644,1756566644372,-480.0,0.00019178,2]
[382291646,1756566644381,-406.60345527,0.00019178,2]
[382291648,1756566644390,-654.15,0.00019178,2]
[382291650,1756566644400,-327.0,0.00019178,2]
[382291652,1756566644409,-480.0,0.00019178,2]
[382291654,1756566644419,-480.0,0.00019178,2]
[382291656,1756566644428,-838.74,0.00019178,2]
[382291658,1756566644438,-481.99166166,0.00019178,2]
[382291660,1756566644447,-480.0,0.00019178,2]
[382291662,1756566644457,-480.0,0.00019178,2]
[382291664,1756566644467,-575.64,0.00019178,2]
[382291666,1756566644476,-480.0,0.00019178,2]
[382291668,1756566644486,-480.0,0.00019178,2]
[382291670,1756566644495,-480.0,0.00019178,2]
[382291672,1756566644505,-401.88882702,0.00019178,2]
[382291674,1756566644515,-481.98333524,0.00019178,2]
[382291676,1756566644524,-1607.5553081,0.00019178,2]
[382291678,1756566644534,-563.36,0.00019178,2]
[382291680,1756566644543,-670.78,0.00019178,2]
[382291681,1756566644552,-3616.99944322,0.00019178,2]
[382291684,1756566644562,-1855.46,0.00019178,2]
[382291685,1756566644572,-614.97,0.00019178,2]
[382291687,1756566644582,-480.0,0.00019178,2]
[382291689,1756566644591,-480.0,0.00019178,2]
[382291691,1756566644602,-480.0,0.00019178,2]
[382291693,1756566644611,-593.82,0.00019178,2]
[382291695,1756566644621,-357.12882392,0.00019178,2]
[382291697,1756566644630,-1423.65,0.00019178,2]
[382291699,1756566644640,-480.0,0.00019178,2]
[382291701,1756566644649,-480.0,0.00019178,2]
[382291703,1756566644660,-480.0,0.00019178,2]
[382291705,1756566644669,-151.0,0.00019178,2]
[382291707,1756566644679,-1153.03,0.00019178,2]
[382291709,1756566644688,-481.76756872,0.00019178,2]
[382291711,1756566644699,-480.0,0.00019178,2]
[382291713,1756566644708,-415.43230139,0.00019178,2]
[382291715,1756566644718,-480.0,0.00019178,2]
[382291717,1756566644728,-480.0,0.00019178,2]
[382291719,1756566644738,-480.0,0.00019178,2]
[382291721,1756566644747,-859.2,0.00019178,2]
[382291723,1756566644757,-480.0,0.00019178,2]
[382291725,1756566644766,-480.0,0.00019178,2]
[382291727,1756566644776,-480.0,0.00019178,2]
[382291729,1756566644786,-480.0,0.00019178,2]
[382291731,1756566644798,-599.62,0.00019178,2]
[382291733,1756566644807,-480.0,0.00019178,2]
[382291735,1756566644817,-782.76,0.00019178,2]
[382291737,1756566644827,-480.0,0.00019178,2]
[382291739,1756566644837,-480.0,0.00019178,2]
[382291741,1756566644847,-480.0,0.00019178,2]
[382291743,1756566644857,-647.81,0.00019178,2]
[382291745,1756566644867,-363.89564432,0.00019178,2]
[382291747,1756566644876,-480.0,0.00019178,2]
[382291749,1756566644886,-807.28,0.00019178,2]
[382291751,1756566644895,-480.0,0.00019178,2]
[382291753,1756566644905,-1812.85,0.00019178,2]
[382291755,1756566644914,-480.0,0.00019178,2]
[382291757,1756566644926,-575.24,0.00019178,2]
[382291759,1756566644936,-1039.27,0.00019178,2]
[382291760,1756566644946,-480.0,0.00019178,2]
[382291762,1756566644955,-1022.32,0.00019178,2]
[382291764,1756566644965,-882.21,0.00019178,2]
[382291766,1756566644974,-480.0,0.00019178,2]
[382291768,1756566644984,-480.0,0.00019178,2]
[382291770,1756566644994,-480.0,0.00019178,2]
[382291772,1756566645003,-480.0,0.00019178,2]
[382291774,1756566645014,-698.16,0.00019178,2]
[382291776,1756566645023,-480.0,0.00019178,2]
[382291778,1756566645033,-480.0,0.00019178,2]
[382291780,1756566645043,-480.0,0.00019178,2]
[382291782,1756566645053,-480.0,0.00019178,2]
[382291784,1756566645062,-1072.32,0.00019178,2]
[382291786,1756566645072,-480.0,0.00019178,2]
[382291788,1756566645081,-480.0,0.00019178,2]
[382291790,1756566645091,-480.0,0.00019178,2]
[382291792,1756566645100,-480.0,0.00019178,2]
[382291794,1756566645110,-480.0,0.00019178,2]
[382291796,1756566645119,-480.0,0.00019178,2]
[382291798,1756566645129,-480.0,0.00019178,2]
[382291800,1756566645139,-480.0,0.00019178,2]
[382291802,1756566645149,-691.2,0.00019178,2]
[382291804,1756566645158,-161.94451285,0.00019178,2]
[382291806,1756566645167,-480.0,0.00019178,2]
[382291808,1756566645177,-1644.1,0.00019178,2]
[382291810,1756566645187,-1519.82,0.00019178,2]
[382291812,1756566645198,-480.0,0.00019178,2]
[382291814,1756566645208,-480.0,0.00019178,2]
[382291829,1756566645339,-480.0,0.00019178,2]
[382291832,1756566645364,-1048.79,0.00019178,2]
[382291834,1756566645374,-480.0,0.00019178,2]
[382291836,1756566645383,-1241.59,0.00019178,2]
[382291838,1756566645393,-480.0,0.00019178,2]
[382291839,1756566645402,-732.62,0.00019178,2]
[382291842,1756566645412,-480.0,0.00019178,2]
[382291844,1756566645421,-480.0,0.00019178,2]
[382291845,1756566645431,-480.0,0.00019178,2]
[382291847,1756566645443,-480.0,0.00019178,2]
[382291849,1756566645453,-868.46,0.00019178,2]
[382291851,1756566645463,-480.0,0.00019178,2]
[382291853,1756566645472,-572.22156623,0.00019178,2]
[382291855,1756566645482,-480.0,0.00019178,2]
[382291857,1756566645492,-901.18,0.00019178,2]
[382291859,1756566645501,-962.56,0.00019178,2]
[382291861,1756566645511,-480.0,0.00019178,2]
[382291863,1756566645521,-481.15793643,0.00019178,2]
[382291865,1756566645530,-480.0,0.00019178,2]
[382291867,1756566645539,-480.0,0.00019178,2]
[382291869,1756566645549,-480.0,0.00019178,2]
[382291871,1756566645559,-1248.19,0.00019178,2]
[382291873,1756566645568,-480.0,0.00019178,2]
[382291875,1756566645578,-480.0,0.00019178,2]
[382291877,1756566645588,-480.0,0.00019178,2]
[382291879,1756566645597,-1099.19,0.00019178,2]
[382291881,1756566645607,-624.89,0.00019178,2]